{"text_format":"3","workbook":"xlsx","n_sheets":4,"sheets":["Трекер проекта","Диаграмма Ганта","Об этой книге","Скрытые динамические данные"],"not_rendered":{"charts":1,"defined_names":8},"read":"whole","date_system":"1900"}

{"sheet":"Трекер проекта","index":0,"n_rows":22,"n_cols":7,"rows_kept":22}
["Создайте на этом листе Трекер проектов.\nВ ячейке B1 содержится название листа. \nСведения о том, как использовать этот лист, включая инструкции для средств чтения с экрана, приведены на листе «Об этой книге».","Трекер проектов"]
["Введите дата начала вручную в ячейке D2 или найдите наименьшую дату в столбце вех таблицы ниже с помощью примера формулы.",null,"Дата начала:",{"$f":"IFERROR(IF(MIN(Вехи[Дата начала])=0,TODAY(),MIN(Вехи[Дата начала])),TODAY())","v":"2018-07-17"}]
["Введите дата окончания вручную в ячейке D3 или найдите наибольшую дату в столбце вех таблицы ниже с помощью примера формулы.",null,"Дата окончания:",{"$f":"IFERROR(IF(MAX(Вехи[Дата окончания])=0,TODAY(),MAX(Вехи[Дата окончания])),TODAY())","v":"2019-02-12"}]
["Сведения о столбцах в таблице вех можно найти в ячейках с B4 по G4.","В столбце ниже введите последовательность чисел.","Введите дату начала для вехи или действия в столбце ниже.","Введите дату окончания для вехи или действия в столбце ниже.","Введите описание вехи или действия в столбце ниже. Такие описания будут отображаться на диаграмме проекта.","Вычисляется автоматически. Данные в этом столбце используются для отображения вех и действий на диаграмме.","Вычисляется автоматически. Длительность каждой задачи "]
["Ячейки B5 — G5 содержат заголовки таблицы. \nСуществует два скрытых столбца: столбцы «Дата окончания» и «Веха/действие» в ячейках F5 — G5 рассчитываются автоматически и используются для построения диаграммы на листе «Диаграмма Ганта». \nПример данных находится в ячейках с B6 по E21. \nСледующая инструкция находится в ячейке A22.","Позиция","Дата начала","Дата окончания","Веха/действие","День начала","Длительность задач"]
[null,1,{"$f":"TODAY()-10","v":"2018-08-06"},{"$f":"Вехи[[#This Row],[Дата начала]]+10","v":"2018-08-16"},"Начало",{"$f":"IFERROR(IF(OR(LEN(Вехи[[#This Row],[Дата начала]])=0,LEN(Вехи[[#This Row],[Дата окончания]])=0),\"\",INT(C6)-INT($C$6)),\"\")","v":0},{"$f":"IFERROR(IF(Вехи[[#This Row],[День начала]]=0,DATEDIF(Вехи[[#This Row],[Дата начала]],Вехи[[#This Row],[Дата окончания]],\"d\")+1,IF(LEN(Вехи[[#This Row],[День начала]])=0,\"\",DATEDIF(Вехи[[#This Row],[Дата начала]],Вехи[[#This Row],[Дата окончания]],\"d\")+1)),0)","v":11}]
[null,2,{"$f":"TODAY()+5","v":"2018-08-21"},{"$f":"Вехи[[#This Row],[Дата начала]]+15","v":"2018-09-05"},{"$f":"\"Мероприятие\"&\" \"&ROW($A2)","v":"Мероприятие 2"},{"$f":"IFERROR(IF(OR(LEN(Вехи[[#This Row],[Дата начала]])=0,LEN(Вехи[[#This Row],[Дата окончания]])=0),\"\",INT(C7)-INT($C$6)),\"\")","v":15},{"$f":"IFERROR(IF(Вехи[[#This Row],[День начала]]=0,DATEDIF(Вехи[[#This Row],[Дата начала]],Вехи[[#This Row],[Дата окончания]],\"d\")+1,IF(LEN(Вехи[[#This Row],[День начала]])=0,\"\",DATEDIF(Вехи[[#This Row],[Дата начала]],Вехи[[#This Row],[Дата окончания]],\"d\")+1)),0)","v":16}]
[null,3,{"$f":"TODAY()-30","v":"2018-07-17"},{"$f":"Вехи[[#This Row],[Дата начала]]+152","v":"2018-12-16"},{"$f":"\"Мероприятие\"&\" \"&ROW($A3)","v":"Мероприятие 3"},{"$f":"IFERROR(IF(OR(LEN(Вехи[[#This Row],[Дата начала]])=0,LEN(Вехи[[#This Row],[Дата окончания]])=0),\"\",INT(C8)-INT($C$6)),\"\")","v":{"v":-20,"d":"-20 "}},{"$f":"IFERROR(IF(Вехи[[#This Row],[День начала]]=0,DATEDIF(Вехи[[#This Row],[Дата начала]],Вехи[[#This Row],[Дата окончания]],\"d\")+1,IF(LEN(Вехи[[#This Row],[День начала]])=0,\"\",DATEDIF(Вехи[[#This Row],[Дата начала]],Вехи[[#This Row],[Дата окончания]],\"d\")+1)),0)","v":153}]
[null,4,{"$f":"TODAY()+2","v":"2018-08-18"},{"$f":"Вехи[[#This Row],[Дата начала]]+150","v":"2019-01-15"},"Мероприятие 4",{"$f":"IFERROR(IF(OR(LEN(Вехи[[#This Row],[Дата начала]])=0,LEN(Вехи[[#This Row],[Дата окончания]])=0),\"\",INT(C9)-INT($C$6)),\"\")","v":12},{"$f":"IFERROR(IF(Вехи[[#This Row],[День начала]]=0,DATEDIF(Вехи[[#This Row],[Дата начала]],Вехи[[#This Row],[Дата окончания]],\"d\")+1,IF(LEN(Вехи[[#This Row],[День начала]])=0,\"\",DATEDIF(Вехи[[#This Row],[Дата начала]],Вехи[[#This Row],[Дата окончания]],\"d\")+1)),0)","v":151}]
[null,5,{"$f":"TODAY()+15","v":"2018-08-31"},{"$f":"Вехи[[#This Row],[Дата начала]]+14","v":"2018-09-14"},"Мероприятие 5",{"$f":"IFERROR(IF(OR(LEN(Вехи[[#This Row],[Дата начала]])=0,LEN(Вехи[[#This Row],[Дата окончания]])=0),\"\",INT(C10)-INT($C$6)),\"\")","v":25},{"$f":"IFERROR(IF(Вехи[[#This Row],[День начала]]=0,DATEDIF(Вехи[[#This Row],[Дата начала]],Вехи[[#This Row],[Дата окончания]],\"d\")+1,IF(LEN(Вехи[[#This Row],[День начала]])=0,\"\",DATEDIF(Вехи[[#This Row],[Дата начала]],Вехи[[#This Row],[Дата окончания]],\"d\")+1)),0)","v":15}]
[null,6,{"$f":"TODAY()+30","v":"2018-09-15"},{"$f":"Вехи[[#This Row],[Дата начала]]+45","v":"2018-10-30"},"Мероприятие 6",{"$f":"IFERROR(IF(OR(LEN(Вехи[[#This Row],[Дата начала]])=0,LEN(Вехи[[#This Row],[Дата окончания]])=0),\"\",INT(C11)-INT($C$6)),\"\")","v":40},{"$f":"IFERROR(IF(Вехи[[#This Row],[День начала]]=0,DATEDIF(Вехи[[#This Row],[Дата начала]],Вехи[[#This Row],[Дата окончания]],\"d\")+1,IF(LEN(Вехи[[#This Row],[День начала]])=0,\"\",DATEDIF(Вехи[[#This Row],[Дата начала]],Вехи[[#This Row],[Дата окончания]],\"d\")+1)),0)","v":46}]
[null,7,{"$f":"TODAY()+45","v":"2018-09-30"},{"$f":"Вехи[[#This Row],[Дата начала]]+56","v":"2018-11-25"},"Мероприятие 7",{"$f":"IFERROR(IF(OR(LEN(Вехи[[#This Row],[Дата начала]])=0,LEN(Вехи[[#This Row],[Дата окончания]])=0),\"\",INT(C12)-INT($C$6)),\"\")","v":55},{"$f":"IFERROR(IF(Вехи[[#This Row],[День начала]]=0,DATEDIF(Вехи[[#This Row],[Дата начала]],Вехи[[#This Row],[Дата окончания]],\"d\")+1,IF(LEN(Вехи[[#This Row],[День начала]])=0,\"\",DATEDIF(Вехи[[#This Row],[Дата начала]],Вехи[[#This Row],[Дата окончания]],\"d\")+1)),0)","v":57}]
[null,8,{"$f":"TODAY()+60","v":"2018-10-15"},{"$f":"Вехи[[#This Row],[Дата начала]]+30","v":"2018-11-14"},{"$f":"\"Мероприятие\"&\" \"&ROW($A8)","v":"Мероприятие 8"},{"$f":"IFERROR(IF(OR(LEN(Вехи[[#This Row],[Дата начала]])=0,LEN(Вехи[[#This Row],[Дата окончания]])=0),\"\",INT(C13)-INT($C$6)),\"\")","v":70},{"$f":"IFERROR(IF(Вехи[[#This Row],[День начала]]=0,DATEDIF(Вехи[[#This Row],[Дата начала]],Вехи[[#This Row],[Дата окончания]],\"d\")+1,IF(LEN(Вехи[[#This Row],[День начала]])=0,\"\",DATEDIF(Вехи[[#This Row],[Дата начала]],Вехи[[#This Row],[Дата окончания]],\"d\")+1)),0)","v":31}]
[null,9,{"$f":"TODAY()+37","v":"2018-09-22"},{"$f":"Вехи[[#This Row],[Дата начала]]+22","v":"2018-10-14"},{"$f":"\"Мероприятие\"&\" \"&ROW($A9)","v":"Мероприятие 9"},{"$f":"IFERROR(IF(OR(LEN(Вехи[[#This Row],[Дата начала]])=0,LEN(Вехи[[#This Row],[Дата окончания]])=0),\"\",INT(C14)-INT($C$6)),\"\")","v":47},{"$f":"IFERROR(IF(Вехи[[#This Row],[День начала]]=0,DATEDIF(Вехи[[#This Row],[Дата начала]],Вехи[[#This Row],[Дата окончания]],\"d\")+1,IF(LEN(Вехи[[#This Row],[День начала]])=0,\"\",DATEDIF(Вехи[[#This Row],[Дата начала]],Вехи[[#This Row],[Дата окончания]],\"d\")+1)),0)","v":23}]
[null,10,{"$f":"TODAY()-20","v":"2018-07-27"},{"$f":"Вехи[[#This Row],[Дата начала]]+160","v":"2019-01-03"},{"$f":"\"Мероприятие\"&\" \"&ROW($A10)","v":"Мероприятие 10"},{"$f":"IFERROR(IF(OR(LEN(Вехи[[#This Row],[Дата начала]])=0,LEN(Вехи[[#This Row],[Дата окончания]])=0),\"\",INT(C15)-INT($C$6)),\"\")","v":{"v":-10,"d":"-10 "}},{"$f":"IFERROR(IF(Вехи[[#This Row],[День начала]]=0,DATEDIF(Вехи[[#This Row],[Дата начала]],Вехи[[#This Row],[Дата окончания]],\"d\")+1,IF(LEN(Вехи[[#This Row],[День начала]])=0,\"\",DATEDIF(Вехи[[#This Row],[Дата начала]],Вехи[[#This Row],[Дата окончания]],\"d\")+1)),0)","v":161}]
[null,11,{"$f":"TODAY()+20","v":"2018-09-05"},{"$f":"Вехи[[#This Row],[Дата начала]]+65","v":"2018-11-09"},{"$f":"\"Мероприятие\"&\" \"&ROW($A11)","v":"Мероприятие 11"},{"$f":"IFERROR(IF(OR(LEN(Вехи[[#This Row],[Дата начала]])=0,LEN(Вехи[[#This Row],[Дата окончания]])=0),\"\",INT(C16)-INT($C$6)),\"\")","v":30},{"$f":"IFERROR(IF(Вехи[[#This Row],[День начала]]=0,DATEDIF(Вехи[[#This Row],[Дата начала]],Вехи[[#This Row],[Дата окончания]],\"d\")+1,IF(LEN(Вехи[[#This Row],[День начала]])=0,\"\",DATEDIF(Вехи[[#This Row],[Дата начала]],Вехи[[#This Row],[Дата окончания]],\"d\")+1)),0)","v":66}]
[null,12,{"$f":"TODAY()+70","v":"2018-10-25"},{"$f":"Вехи[[#This Row],[Дата начала]]+67","v":"2018-12-31"},{"$f":"\"Мероприятие\"&\" \"&ROW($A12)","v":"Мероприятие 12"},{"$f":"IFERROR(IF(OR(LEN(Вехи[[#This Row],[Дата начала]])=0,LEN(Вехи[[#This Row],[Дата окончания]])=0),\"\",INT(C17)-INT($C$6)),\"\")","v":80},{"$f":"IFERROR(IF(Вехи[[#This Row],[День начала]]=0,DATEDIF(Вехи[[#This Row],[Дата начала]],Вехи[[#This Row],[Дата окончания]],\"d\")+1,IF(LEN(Вехи[[#This Row],[День начала]])=0,\"\",DATEDIF(Вехи[[#This Row],[Дата начала]],Вехи[[#This Row],[Дата окончания]],\"d\")+1)),0)","v":68}]
[null,13,{"$f":"TODAY()+90","v":"2018-11-14"},{"$f":"Вехи[[#This Row],[Дата начала]]+14","v":"2018-11-28"},"Мероприятие 13",{"$f":"IFERROR(IF(OR(LEN(Вехи[[#This Row],[Дата начала]])=0,LEN(Вехи[[#This Row],[Дата окончания]])=0),\"\",INT(C18)-INT($C$6)),\"\")","v":100},{"$f":"IFERROR(IF(Вехи[[#This Row],[День начала]]=0,DATEDIF(Вехи[[#This Row],[Дата начала]],Вехи[[#This Row],[Дата окончания]],\"d\")+1,IF(LEN(Вехи[[#This Row],[День начала]])=0,\"\",DATEDIF(Вехи[[#This Row],[Дата начала]],Вехи[[#This Row],[Дата окончания]],\"d\")+1)),0)","v":15}]
[null,14,{"$f":"TODAY()+100","v":"2018-11-24"},{"$f":"Вехи[[#This Row],[Дата начала]]+3","v":"2018-11-27"},"Мероприятие 14",{"$f":"IFERROR(IF(OR(LEN(Вехи[[#This Row],[Дата начала]])=0,LEN(Вехи[[#This Row],[Дата окончания]])=0),\"\",INT(C19)-INT($C$6)),\"\")","v":110},{"$f":"IFERROR(IF(Вехи[[#This Row],[День начала]]=0,DATEDIF(Вехи[[#This Row],[Дата начала]],Вехи[[#This Row],[Дата окончания]],\"d\")+1,IF(LEN(Вехи[[#This Row],[День начала]])=0,\"\",DATEDIF(Вехи[[#This Row],[Дата начала]],Вехи[[#This Row],[Дата окончания]],\"d\")+1)),0)","v":4}]
[null,15,{"$f":"TODAY()+50","v":"2018-10-05"},{"$f":"Вехи[[#This Row],[Дата начала]]+130","v":"2019-02-12"},"Мероприятие 15",{"$f":"IFERROR(IF(OR(LEN(Вехи[[#This Row],[Дата начала]])=0,LEN(Вехи[[#This Row],[Дата окончания]])=0),\"\",INT(C20)-INT($C$6)),\"\")","v":60},{"$f":"IFERROR(IF(Вехи[[#This Row],[День начала]]=0,DATEDIF(Вехи[[#This Row],[Дата начала]],Вехи[[#This Row],[Дата окончания]],\"d\")+1,IF(LEN(Вехи[[#This Row],[День начала]])=0,\"\",DATEDIF(Вехи[[#This Row],[Дата начала]],Вехи[[#This Row],[Дата окончания]],\"d\")+1)),0)","v":131}]
[{"$nulls":5},{"$f":"IFERROR(IF(OR(LEN(Вехи[[#This Row],[Дата начала]])=0,LEN(Вехи[[#This Row],[Дата окончания]])=0),\"\",INT(C21)-INT($C$6)),\"\")","v":""},{"$f":"IFERROR(IF(Вехи[[#This Row],[День начала]]=0,DATEDIF(Вехи[[#This Row],[Дата начала]],Вехи[[#This Row],[Дата окончания]],\"d\")+1,IF(LEN(Вехи[[#This Row],[День начала]])=0,\"\",DATEDIF(Вехи[[#This Row],[Дата начала]],Вехи[[#This Row],[Дата окончания]],\"d\")+1)),0)","v":""}]
["Чтобы добавить еще вехи или действия, вставьте новые строки над этой.\nЭто последняя инструкция на данном листе.","Чтобы добавить еще вехи или действия, вставьте новые строки над этой."]

{"sheet":"Диаграмма Ганта","index":1,"n_rows":1,"n_cols":1,"rows_kept":1}
["На этом листе находится диаграмма Ганта с полосой прокрутки. \nПолоса прокрутки начинается в ячейке B29.\nЭто последняя инструкция на данном листе."]

{"sheet":"Об этой книге","index":2,"n_rows":6,"n_cols":1,"rows_kept":6}
["Об этой книге"]
["\nВведите свои данные на листе «Трекер проекта», а затем прокрутите временную шкалу на листе «Диаграмма Ганта». \n"]
["Столбец «Позиция» на листе «Трекер проекта» позволяет отображать вехи и действия на отдельных строках. Это полезно, если у вас есть две вехи или действия, которые начинаются в один и тот же день и выполняются параллельно. Если для них задана одинаковая позиция, они будут перекрываться на диаграмме. Присвойте два уникальных значения, чтобы разделить их. Попробуйте сами!\n\nВ конце диаграммы вы можете заметить маркеры без текста и длительности. Они обозначают конец вех, заданных в таблице «Трекер проекта». Чтобы просмотреть вехи на диаграмме, просто прокрутите ее назад или в начало.\n"]
["Инструкции для средств чтения с экрана"]
["Эта книга состоит из четырех листов. \n\nТрекер проекта\nДиаграмма Ганта\nОб этой книге\nСкрытые динамические данные\n\nИнструкции для соответствующего листа находятся на каждом листе в столбце A, начиная с ячейки A1. Они представлены в виде скрытого текста. Инструкция для каждого шага находится в соответствующей строке. Последующие шаги описаны в ячейках A2, A3 и т. д., если явно не указано иное. Например, в инструкциях может быть сказано «Далее см. ячейку A6». \n\nСкрытый текст не выводится на печать.\n\nЧтобы убрать эти инструкции с листа, просто удалите столбец A.\n"]
["Это последняя инструкция на данном листе."]

{"sheet":"Скрытые динамические данные","index":3,"n_rows":10,"n_cols":6,"rows_kept":10,"hidden":true}
["Название этого листа указано в ячейке B1.","Динамические данные диаграммы"]
["В ячейке B2 выводится заголовок «Шаг горизонтальной прокрутки».\nЧтобы прокрутить данные вручную, введите новое значение в ячейке B3.\nПрокрутка автоматически обновляется при перетаскивании ползунка прокрутки вперед или назад на листе «Диаграмма Ганта».","Шаг горизонтальной прокрутки"]
["Автоматически обновленное значение прокрутки выводится в ячейке B3.",0]
["Название таблицы находится в ячейке B4.","Таблица динамических данных"]
["Ячейки B5 — E5 содержат заголовки таблицы. \nВ ячейке F5 есть примечание.\nЭта таблица позволяет одновременно отобразить до пяти вех. \nНе изменяйте и не удаляйте этот лист и его содержимое.","веха","дата","День начала","длительность","<-- одновременно можно отобразить до пяти вех"]
[null,{"$f":"IFERROR(IF(LEN(OFFSET('Трекер проекта'!$E6,$B$3,0,1,1))=0,\"\",INDEX(Вехи[],'Трекер проекта'!$B6+$B$3,4)),\"\")","v":"Начало"},{"$f":"IFERROR(IF(LEN(OFFSET('Трекер проекта'!$C6,$B$3,0,1,1))=0,Дата_окончания,INDEX(Вехи[],'Трекер проекта'!$B6+$B$3,2)),\"\")","v":"2018-08-06"},{"$f":"IFERROR(IF(LEN(OFFSET('Трекер проекта'!$F6,$B$3,0,1,1))=0,\"\",INDEX(Вехи[],'Трекер проекта'!$B6+$B$3,5)),\"\")","v":0},{"$f":"IFERROR(IF(LEN(OFFSET('Трекер проекта'!$G6,$B$3,0,1,1))=0,\"\",INDEX(Вехи[],'Трекер проекта'!$B6+$B$3,6)),\"\")","v":11}]
[null,{"$f":"IFERROR(IF(LEN(OFFSET('Трекер проекта'!$E7,$B$3,0,1,1))=0,\"\",INDEX(Вехи[],'Трекер проекта'!$B7+$B$3,4)),\"\")","v":"Мероприятие 2"},{"$f":"IFERROR(IF(LEN(OFFSET('Трекер проекта'!$C7,$B$3,0,1,1))=0,Дата_окончания,INDEX(Вехи[],'Трекер проекта'!$B7+$B$3,2)),\"\")","v":"2018-08-21"},{"$f":"IFERROR(IF(LEN(OFFSET('Трекер проекта'!$F7,$B$3,0,1,1))=0,\"\",INDEX(Вехи[],'Трекер проекта'!$B7+$B$3,5)),\"\")","v":15},{"$f":"IFERROR(IF(LEN(OFFSET('Трекер проекта'!$G7,$B$3,0,1,1))=0,\"\",INDEX(Вехи[],'Трекер проекта'!$B7+$B$3,6)),\"\")","v":16}]
[null,{"$f":"IFERROR(IF(LEN(OFFSET('Трекер проекта'!$E8,$B$3,0,1,1))=0,\"\",INDEX(Вехи[],'Трекер проекта'!$B8+$B$3,4)),\"\")","v":"Мероприятие 3"},{"$f":"IFERROR(IF(LEN(OFFSET('Трекер проекта'!$C8,$B$3,0,1,1))=0,Дата_окончания,INDEX(Вехи[],'Трекер проекта'!$B8+$B$3,2)),\"\")","v":"2018-07-17"},{"$f":"IFERROR(IF(LEN(OFFSET('Трекер проекта'!$F8,$B$3,0,1,1))=0,\"\",INDEX(Вехи[],'Трекер проекта'!$B8+$B$3,5)),\"\")","v":-20},{"$f":"IFERROR(IF(LEN(OFFSET('Трекер проекта'!$G8,$B$3,0,1,1))=0,\"\",INDEX(Вехи[],'Трекер проекта'!$B8+$B$3,6)),\"\")","v":153}]
[null,{"$f":"IFERROR(IF(LEN(OFFSET('Трекер проекта'!$E9,$B$3,0,1,1))=0,\"\",INDEX(Вехи[],'Трекер проекта'!$B9+$B$3,4)),\"\")","v":"Мероприятие 4"},{"$f":"IFERROR(IF(LEN(OFFSET('Трекер проекта'!$C9,$B$3,0,1,1))=0,Дата_окончания,INDEX(Вехи[],'Трекер проекта'!$B9+$B$3,2)),\"\")","v":"2018-08-18"},{"$f":"IFERROR(IF(LEN(OFFSET('Трекер проекта'!$F9,$B$3,0,1,1))=0,\"\",INDEX(Вехи[],'Трекер проекта'!$B9+$B$3,5)),\"\")","v":12},{"$f":"IFERROR(IF(LEN(OFFSET('Трекер проекта'!$G9,$B$3,0,1,1))=0,\"\",INDEX(Вехи[],'Трекер проекта'!$B9+$B$3,6)),\"\")","v":151}]
[null,{"$f":"IFERROR(IF(LEN(OFFSET('Трекер проекта'!$E10,$B$3,0,1,1))=0,\"\",INDEX(Вехи[],'Трекер проекта'!$B10+$B$3,4)),\"\")","v":"Мероприятие 5"},{"$f":"IFERROR(IF(LEN(OFFSET('Трекер проекта'!$C10,$B$3,0,1,1))=0,Дата_окончания,INDEX(Вехи[],'Трекер проекта'!$B10+$B$3,2)),\"\")","v":"2018-08-31"},{"$f":"IFERROR(IF(LEN(OFFSET('Трекер проекта'!$F10,$B$3,0,1,1))=0,\"\",INDEX(Вехи[],'Трекер проекта'!$B10+$B$3,5)),\"\")","v":25},{"$f":"IFERROR(IF(LEN(OFFSET('Трекер проекта'!$G10,$B$3,0,1,1))=0,\"\",INDEX(Вехи[],'Трекер проекта'!$B10+$B$3,6)),\"\")","v":15}]